[Event "Airthings Masters MCCT Prel 2022"]
[Site "Online"]
[Date "2022.02.13"]
[Round "13.2"]
[White "Praggnanandhaa R"]
[Black "Keymer, Vincent"]
[Result "1/2-1/2"]
[ECO "B12"]
[WhiteElo "2612"]
[BlackElo "2664"]
[Annotator "ChessBase"]
[PlyCount "90"]
[EventDate "2022.02.18"]
[EventType "tourn"]
[EventCountry "NET"]
[SourceTitle "playchess.com"]
[Source "ChessBase"]
[SourceQuality "1"]
[TimeControl "900+10"]

1. e4 {[%emt 0:00:00]} c6 {[%emt 0:00:00]} 2. d4 {[%emt 0:00:02]} d5 {[%emt 0:
00:01]} 3. e5 {[%emt 0:00:00]} Bf5 {[%emt 0:00:02]} 4. h4 {[%emt 0:00:01]} h5 {
[%emt 0:00:01]} 5. Bd3 {[%emt 0:00:01]} Bxd3 {[%emt 0:00:04]} 6. Qxd3 {[%emt 0:
00:01]} e6 {[%emt 0:00:02]} 7. Nf3 {[%emt 0:00:04]} Qa5+ {[%emt 0:00:11]} 8.
Nbd2 {[%emt 0:00:04]} Nh6 {[%emt 0:00:05]} 9. O-O {[%emt 0:00:03]} Nf5 {
[%emt 0:00:02]} 10. a4 {[%emt 0:00:04]} Qa6 {[%emt 0:00:43]} 11. c4 {[%emt 0:
00:06]} Bb4 {[%emt 0:00:06]} 12. b3 {[%emt 0:00:04]} c5 {[%emt 0:00:17]} 13.
Qb1 {[%emt 0:00:07]} Nxd4 {[%emt 0:00:40]} 14. Nxd4 {[%emt 0:00:04]} cxd4 {
[%emt 0:00:00]} 15. cxd5 {[%emt 0:00:10]} exd5 {[%emt 0:00:03]} 16. Nf3 {
[%emt 0:00:02]} Qg6 {[%emt 0:04:31]} 17. Qxg6 {[%emt 0:03:47]} fxg6 {[%emt 0:
00:00]} 18. Bb2 {[%emt 0:00:03]} Nc6 {[%emt 0:00:42]} 19. Nxd4 {[%emt 0:00:31]}
Nxd4 {[%emt 0:00:49]} 20. Bxd4 {[%emt 0:00:03]} Ke7 {[%emt 0:00:40]} 21. Rfd1 {
[%emt 0:01:56]} Rhc8 {[%emt 0:02:46]} 22. Rd3 {[%emt 0:01:29]} Rc6 {[%emt 0:00:
19]} 23. Rad1 {[%emt 0:01:11]} Ke6 {[%emt 0:00:22]} 24. Rg3 {[%emt 0:00:25]}
Kf7 {[%emt 0:00:22]} 25. Rf3+ {[%emt 0:03:16]} Ke6 {[%emt 0:00:05]} 26. Rg3 {
[%emt 0:00:09]} Kf7 {[%emt 0:00:10]} 27. f4 {[%emt 0:01:31]} Be7 {[%emt 0:01:
53]} 28. f5 {[%emt 0:00:17]} gxf5 {[%emt 0:00:46]} 29. e6+ {[%emt 0:00:02]}
Kxe6 {[%emt 0:00:33]} 30. Re1+ {[%emt 0:01:27]} Kd7 {[%emt 0:00:41]} 31. Rxg7 {
[%emt 0:00:06]} Re6 {[%emt 0:00:06]} 32. Rxe6 {[%emt 0:01:11]} Kxe6 {[%emt 0:
00:00]} 33. Rg6+ {[%emt 0:00:04]} Kd7 {[%emt 0:00:19]} 34. Rh6 {[%emt 0:00:35]}
Bxh4 {[%emt 0:01:36]} 35. Rxh5 {[%emt 0:00:02]} Bg3 {[%emt 0:00:43]} 36. Rxf5 {
[%emt 0:00:06]} Kc6 {[%emt 0:00:56]} 37. Rf6+ {[%emt 0:00:16]} Kd7 {[%emt 0:00:
03]} 38. Rg6 {[%emt 0:01:10]} Bd6 {[%emt 0:00:04]} 39. g4 {[%emt 0:00:29]} a6 {
[%emt 0:00:10]} 40. Kf2 {[%emt 0:00:19]} Re8 {[%emt 0:00:32]} 41. g5 {[%emt 0:
00:24]} Re4 {[%emt 0:00:07]} 42. Rg7+ {[%emt 0:00:02]} Ke6 {[%emt 0:00:08]} 43.
Rg6+ {[%emt 0:00:02]} Kd7 {[%emt 0:00:05]} 44. Rg7+ {[%emt 0:00:04]} Ke6 {
[%emt 0:00:01]} 45. Rg6+ {[%emt 0:00:08]} Kd7 {[%emt 0:00:01]} 1/2-1/2

[Event "Airthings Masters MCCT Prel 2022"]
[Site "Online"]
[Date "2022.02.13"]
[Round "14.3"]
[White "Abdusattorov, Nodirbek"]
[Black "Aronian, Levon"]
[Result "0-1"]
[ECO "A28"]
[WhiteElo "2651"]
[BlackElo "2772"]
[Annotator "RC"]
[PlyCount "114"]
[EventDate "2022.02.18"]
[EventType "tourn"]
[EventCountry "NET"]
[SourceTitle "playchess.com"]
[Source "ChessBase"]
[SourceQuality "1"]
[TimeControl "900+10"]

1. c4 {[%emt 0:00:00]} Nf6 {[%emt 0:00:00]} 2. Nc3 {[%emt 0:00:02]} e5 {
[%emt 0:00:02]} 3. Nf3 {[%emt 0:00:03]} Nc6 {[%emt 0:00:01]} 4. e4 {[%emt 0:00:
02]} Bc5 {[%emt 0:00:02]} 5. Nxe5 {[%emt 0:00:04]} Nxe5 {[%emt 0:00:01]} 6. d4
{[%emt 0:00:01]} Bb4 {[%emt 0:00:01]} 7. dxe5 {[%emt 0:00:01]} Nxe4 {[%emt 0:
00:01]} 8. Qf3 {[%emt 0:00:01]} f5 {[%emt 0:00:02]} 9. Be2 {[%emt 0:00:13]} O-O
{[%emt 0:00:35]} 10. O-O {[%emt 0:00:04]} Bxc3 {[%emt 0:00:02]} 11. bxc3 {
[%emt 0:00:01]} Qe7 {[%emt 0:00:06]} 12. Qe3 {[%emt 0:01:19]} b6 {[%emt 0:00:
17]} 13. f3 {[%emt 0:03:07]} Nc5 {[%emt 0:00:04]} 14. Ba3 {[%emt 0:00:38]} d6 {
[%emt 0:00:12]} 15. f4 {[%emt 0:02:03]} Be6 {[%emt 0:00:28]} 16. exd6 {[%emt 0:
01:09]} cxd6 {[%emt 0:00:03]} 17. Bf3 {[%emt 0:00:40]} Rae8 {[%emt 0:00:03]}
18. Rfe1 {[%emt 0:00:09]} Qf6 {[%emt 0:01:29]} 19. Qd4 {[%emt 0:01:50]} Qxd4+ {
[%emt 0:00:28]} 20. cxd4 {[%emt 0:00:03]} Nd3 {[%emt 0:00:00]} 21. Red1 {
[%emt 0:00:45]} Bxc4 {[%emt 0:00:09]} 22. Bxd6 {[%emt 0:00:01]} Rf7 {[%emt 0:
00:15]} 23. a4 {[%emt 0:00:39]} Rd8 {[%emt 0:00:31]} 24. Be5 {[%emt 0:00:02]}
Rfd7 {[%emt 0:00:45]} 25. h4 {[%emt 0:01:01]} Kf7 {[%emt 0:00:39]} 26. Rdb1 {
[%emt 0:00:13]} Nxe5 {[%emt 0:00:21]} 27. dxe5 {[%emt 0:00:00]} Rd4 {[%emt 0:
00:01]} 28. Rd1 {[%emt 0:00:16]} Ke7 {[%emt 0:00:36]} 29. Kf2 {[%emt 0:00:16]}
Bb3 {[%emt 0:00:47]} 30. Rxd4 {[%emt 0:00:09]} Rxd4 {[%emt 0:00:00]} 31. a5 {
[%emt 0:00:06]} Rxf4 {[%emt 0:01:37]} 32. axb6 {[%emt 0:00:02]} axb6 {[%emt 0:
00:00]} 33. Ra7+ {[%emt 0:00:02]} Kf8 {[%emt 0:00:34]} 34. Ra8+ {[%emt 0:00:13]
} Kf7 {[%emt 0:00:08]} 35. Ra7+ {[%emt 0:00:02]} Kg6 {[%emt 0:01:14]} 36. Rb7 {
[%emt 0:00:10]} Rb4 {[%emt 0:00:16]} 37. Ke3 {[%emt 0:00:12]} Kh6 {[%emt 0:01:
17]} 38. Kd3 {[%emt 0:00:18]} g6 {[%emt 0:00:42]} 39. Kc3 {[%emt 0:00:24]} Rb5
{[%emt 0:00:01]} 40. Re7 {[%emt 0:01:00]} Ba2 {[%emt 0:00:29]} 41. Re8 {
[%emt 0:00:36]} Rc5+ {[%emt 0:00:38]} 42. Kd4 {[%emt 0:00:58]} Rc4+ {[%emt 0:
00:24]} 43. Ke3 {[%emt 0:00:01]} Rxh4 {[%emt 0:01:08]} 44. e6 {[%emt 0:00:12]}
Ra4 {[%emt 0:00:11]} 45. Bc6 {[%emt 0:00:14]} b5 {[%emt 0:00:12]} 46. Bd7 {
[%emt 0:00:27]} Re4+ {[%emt 0:00:08]} 47. Kf3 {[%emt 0:00:36]} Bd5 {[%emt 0:00:
02]} 48. Kf2 {[%emt 0:00:31]} b4 {[%emt 0:00:02]} 49. Rb8 {[%emt 0:00:29]} Bxe6
{[%emt 0:00:08]} 50. Bxe6 {[%emt 0:00:00]} Rxe6 {[%emt 0:00:01]} 51. Rxb4 {
[%emt 0:00:00]} Kg5 {[%emt 0:00:02]} 52. g3 {[%emt 0:00:01]} h5 {[%emt 0:00:01]
} 53. Kf3 {[%emt 0:00:02]} Re4 {[%emt 0:00:02]} 54. Rb3 {[%emt 0:00:01]} h4 {
[%emt 0:00:01]} 55. gxh4+ {[%emt 0:00:01]} Rxh4 {[%emt 0:00:02]} 56. Rb6 {
[%emt 0:00:02]} Rh3+ {[%emt 0:00:03]} 57. Kg2 {[%emt 0:00:29]} Rc3 {[%emt 0:00:
01]} 0-1

[Event "Airthings Masters MCCT Prel 2022"]
[Site "Online"]
[Date "2022.02.13"]
[Round "14.4"]
[White "Esipenko, Andrey"]
[Black "Duda, Jan-Krzysztof"]
[Result "0-1"]
[ECO "C50"]
[WhiteElo "2714"]
[BlackElo "2760"]
[Annotator "RC"]
[PlyCount "142"]
[EventDate "2022.02.18"]
[EventType "tourn"]
[EventCountry "NET"]
[SourceTitle "playchess.com"]
[Source "ChessBase"]
[SourceQuality "1"]
[TimeControl "900+10"]

1. e4 {[%emt 0:00:00]} e5 {[%emt 0:00:00]} 2. Nf3 {[%emt 0:00:05]} Nc6 {
[%emt 0:00:02]} 3. Bc4 {[%emt 0:00:04]} Bc5 {[%emt 0:00:02]} 4. d3 {[%emt 0:00:
12]} Nf6 {[%emt 0:00:01]} 5. a4 {[%emt 0:00:05]} a5 {[%emt 0:00:08]} 6. Nc3 {
[%emt 0:00:04]} h6 {[%emt 0:00:39]} 7. Be3 {[%emt 0:00:14]} Bxe3 {[%emt 0:00:
07]} 8. fxe3 {[%emt 0:00:01]} d6 {[%emt 0:00:00]} 9. Qe2 {[%emt 0:00:14]} Ne7 {
[%emt 0:00:58]} 10. Nh4 {[%emt 0:00:53]} Be6 {[%emt 0:00:06]} 11. O-O {[%emt 0:
01:26]} Bxc4 {[%emt 0:00:26]} 12. dxc4 {[%emt 0:00:02]} Nd7 {[%emt 0:01:59]}
13. Qg4 {[%emt 0:00:11]} g6 {[%emt 0:03:00]} 14. Rf2 {[%emt 0:01:40]} Rh7 {
[%emt 0:00:43]} 15. Raf1 {[%emt 0:00:20]} c6 {[%emt 0:01:07]} 16. Rd1 {[%emt 0:
02:41]} Nc8 {[%emt 0:00:07]} 17. Nf3 {[%emt 0:01:59]} Qe7 {[%emt 0:00:27]} 18.
b3 {[%emt 0:00:58]} Kd8 {[%emt 0:01:36]} 19. h4 {[%emt 0:02:06]} Kc7 {[%emt 0:
00:42]} 20. Qh3 {[%emt 0:00:14]} Nc5 {[%emt 0:01:16]} 21. Rdf1 {[%emt 0:01:00]}
Nb6 {[%emt 0:00:06]} 22. h5 {[%emt 0:00:26]} Nbd7 {[%emt 0:00:08]} 23. hxg6 {
[%emt 0:00:43]} fxg6 {[%emt 0:00:00]} 24. Nh4 {[%emt 0:00:05]} Rg8 {[%emt 0:00:
02]} 25. Qg4 {[%emt 0:00:33]} Rhg7 {[%emt 0:00:19]} 26. Qh3 {[%emt 0:00:46]} h5
{[%emt 0:00:17]} 27. Nf3 {[%emt 0:00:38]} g5 {[%emt 0:01:09]} 28. Nd2 {[%emt 0:
01:19]} Rh7 {[%emt 0:00:05]} 29. g3 {[%emt 0:00:23]} Nf8 {[%emt 0:00:38]} 30.
Rf6 {[%emt 0:00:07]} Ncd7 {[%emt 0:00:46]} 31. R6f5 {[%emt 0:00:17]} Ng6 {
[%emt 0:00:58]} 32. Qh2 {[%emt 0:00:04]} Rgg7 {[%emt 0:01:16]} 33. c5 {[%emt 0:
00:29]} Nxc5 {[%emt 0:00:13]} 34. Nc4 {[%emt 0:00:00]} g4 {[%emt 0:00:44]} 35.
Rxh5 {[%emt 0:00:11]} Nf8 {[%emt 0:00:07]} 36. Rff5 {[%emt 0:00:17]} Nfe6 {
[%emt 0:00:01]} 37. Qe2 {[%emt 0:00:15]} Rxh5 {[%emt 0:00:12]} 38. Rxh5 {
[%emt 0:00:01]} Ng5 {[%emt 0:00:01]} 39. Nd2 {[%emt 0:00:22]} Qf7 {[%emt 0:00:
40]} 40. Rh6 {[%emt 0:00:01]} Nf3+ {[%emt 0:00:13]} 41. Nxf3 {[%emt 0:00:01]}
gxf3 {[%emt 0:00:00]} 42. Qh2 {[%emt 0:00:01]} Nd7 {[%emt 0:00:15]} 43. Nd1 {
[%emt 0:00:09]} f2+ {[%emt 0:00:24]} 44. Qxf2 {[%emt 0:00:07]} Qe7 {[%emt 0:00:
01]} 45. Qf3 {[%emt 0:00:11]} Rf7 {[%emt 0:00:07]} 46. Qe2 {[%emt 0:00:11]} Qg5
{[%emt 0:00:09]} 47. Rh3 {[%emt 0:00:01]} Nf6 {[%emt 0:00:03]} 48. Nf2 {
[%emt 0:00:02]} Qg6 {[%emt 0:00:09]} 49. g4 {[%emt 0:00:56]} Nxe4 {[%emt 0:00:
17]} 50. Nxe4 {[%emt 0:00:01]} Qxe4 {[%emt 0:00:00]} 51. Qg2 {[%emt 0:00:01]}
Qb4 {[%emt 0:00:00]} 52. Qe2 {[%emt 0:00:16]} Rg7 {[%emt 0:00:30]} 53. Rg3 {
[%emt 0:00:03]} Rg5 {[%emt 0:00:03]} 54. Kh2 {[%emt 0:00:12]} d5 {[%emt 0:00:
06]} 55. Qf3 {[%emt 0:00:03]} Qd2+ {[%emt 0:00:39]} 56. Rg2 {[%emt 0:00:15]}
Qe1 {[%emt 0:00:01]} 57. Qg3 {[%emt 0:00:05]} Qc1 {[%emt 0:00:12]} 58. Qf2 {
[%emt 0:00:25]} Kb6 {[%emt 0:00:16]} 59. Rg1 {[%emt 0:00:04]} Qb2 {[%emt 0:00:
01]} 60. Rg2 {[%emt 0:00:12]} Qc3 {[%emt 0:00:05]} 61. Kh3 {[%emt 0:00:15]} e4
{[%emt 0:00:14]} 62. Qf4 {[%emt 0:00:06]} Qh8+ {[%emt 0:00:11]} 63. Kg3 {
[%emt 0:00:02]} Rg8 {[%emt 0:00:01]} 64. Rh2 {[%emt 0:00:21]} Qc3 {[%emt 0:00:
09]} 65. g5 {[%emt 0:00:03]} Qe1+ {[%emt 0:00:21]} 66. Kg2 {[%emt 0:00:09]}
Qe2+ {[%emt 0:00:20]} 67. Kg3 {[%emt 0:00:03]} Qe1+ {[%emt 0:00:02]} 68. Kg2 {
[%emt 0:00:01]} Qd1 {[%emt 0:00:03]} 69. Rh7 {[%emt 0:00:05]} Qxc2+ {[%emt 0:
00:10]} 70. Kh3 {[%emt 0:00:06]} Qxb3 {[%emt 0:00:01]} 71. Kg4 {[%emt 0:01:07]}
Qd1+ {[%emt 0:00:05]} 0-1

[Event "Airthings Masters MCCT Prel 2022"]
[Site "Online"]
[Date "2022.02.13"]
[Round "14.5"]
[White "Nepomniachtchi, Ian"]
[Black "Ding, Liren"]
[Result "1/2-1/2"]
[ECO "C77"]
[WhiteElo "2773"]
[BlackElo "2799"]
[Annotator "RC"]
[PlyCount "133"]
[EventDate "2022.02.18"]
[EventType "tourn"]
[EventCountry "NET"]
[SourceTitle "playchess.com"]
[Source "ChessBase"]
[SourceQuality "1"]
[TimeControl "900+10"]

1. e4 {[%emt 0:00:00]} e5 {[%emt 0:00:00]} 2. Nf3 {[%emt 0:00:02]} Nc6 {
[%emt 0:00:01]} 3. Bb5 {[%emt 0:00:00]} a6 {[%emt 0:00:01]} 4. Ba4 {[%emt 0:00:
01]} Nf6 {[%emt 0:00:01]} 5. O-O {[%emt 0:00:01]} Be7 {[%emt 0:00:00]} 6. d3 {
[%emt 0:00:01]} b5 {[%emt 0:00:03]} 7. Bb3 {[%emt 0:00:01]} d6 {[%emt 0:00:01]}
8. a3 {[%emt 0:00:01]} O-O {[%emt 0:00:14]} 9. Nc3 {[%emt 0:00:01]} Na5 {
[%emt 0:00:01]} 10. Ba2 {[%emt 0:00:01]} Be6 {[%emt 0:00:01]} 11. b4 {[%emt 0:
00:00]} Nc6 {[%emt 0:00:04]} 12. Bg5 {[%emt 0:00:12]} Bxa2 {[%emt 0:00:03]} 13.
Rxa2 {[%emt 0:00:02]} Qd7 {[%emt 0:00:11]} 14. Bxf6 {[%emt 0:00:07]} Bxf6 {
[%emt 0:00:01]} 15. Nd5 {[%emt 0:00:01]} a5 {[%emt 0:00:02]} 16. Rb2 {[%emt 0:
00:07]} axb4 {[%emt 0:00:02]} 17. axb4 {[%emt 0:00:02]} Bd8 {[%emt 0:00:09]}
18. c4 {[%emt 0:00:04]} Nd4 {[%emt 0:00:10]} 19. Nxd4 {[%emt 0:00:02]} exd4 {
[%emt 0:00:00]} 20. Qc2 {[%emt 0:00:04]} c6 {[%emt 0:00:48]} 21. Nf4 {[%emt 0:
00:03]} Qb7 {[%emt 0:00:01]} 22. cxb5 {[%emt 0:00:14]} Qxb5 {[%emt 0:00:04]}
23. Ne2 {[%emt 0:00:02]} Bf6 {[%emt 0:00:54]} 24. g3 {[%emt 0:00:37]} Ra3 {
[%emt 0:00:34]} 25. Rb3 {[%emt 0:00:03]} Rxb3 {[%emt 0:03:45]} 26. Qxb3 {
[%emt 0:00:00]} Ra8 {[%emt 0:00:01]} 27. Rc1 {[%emt 0:00:11]} g6 {[%emt 0:00:
01]} 28. Qc4 {[%emt 0:00:10]} Qxc4 {[%emt 0:05:49]} 29. Rxc4 {[%emt 0:00:00]}
Ra2 {[%emt 0:00:01]} 30. Kf1 {[%emt 0:01:34]} Ra1+ {[%emt 0:01:24]} 31. Kg2 {
[%emt 0:00:20]} Ra2 {[%emt 0:00:07]} 32. Nxd4 {[%emt 0:00:48]} Bxd4 {[%emt 0:
00:00]} 33. Rxd4 {[%emt 0:00:02]} c5 {[%emt 0:00:00]} 34. bxc5 {[%emt 0:00:54]}
dxc5 {[%emt 0:00:00]} 35. Rd8+ {[%emt 0:00:04]} Kg7 {[%emt 0:00:01]} 36. Kf3 {
[%emt 0:00:01]} Kf6 {[%emt 0:01:14]} 37. Rc8 {[%emt 0:00:05]} Rc2 {[%emt 0:00:
05]} 38. h4 {[%emt 0:00:12]} h5 {[%emt 0:00:11]} 39. Ke3 {[%emt 0:00:02]} Ke6 {
[%emt 0:00:03]} 40. Rc7 {[%emt 0:00:03]} Kf6 {[%emt 0:01:03]} 41. Rc6+ {
[%emt 0:01:26]} Ke7 {[%emt 0:00:03]} 42. e5 {[%emt 0:00:02]} Kd7 {[%emt 0:00:
04]} 43. Rf6 {[%emt 0:00:03]} Ke7 {[%emt 0:00:02]} 44. Ke4 {[%emt 0:00:04]} Rd2
{[%emt 0:01:05]} 45. f4 {[%emt 0:00:22]} Rg2 {[%emt 0:00:08]} 46. Rc6 {[%emt 0:
00:14]} Re2+ {[%emt 0:00:37]} 47. Kf3 {[%emt 0:00:14]} Rd2 {[%emt 0:00:11]} 48.
Ke3 {[%emt 0:00:06]} Rg2 {[%emt 0:00:02]} 49. Rxc5 {[%emt 0:00:03]} Rxg3+ {
[%emt 0:00:01]} 50. Ke4 {[%emt 0:00:00]} Rh3 {[%emt 0:00:02]} 51. Rc7+ {
[%emt 0:00:02]} Ke8 {[%emt 0:00:29]} 52. d4 {[%emt 0:01:20]} Rxh4 {[%emt 0:00:
01]} 53. Rc8+ {[%emt 0:00:09]} Kd7 {[%emt 0:00:07]} 54. Rg8 {[%emt 0:00:01]}
Rh1 {[%emt 0:00:15]} 55. d5 {[%emt 0:00:03]} Re1+ {[%emt 0:00:03]} 56. Kf3 {
[%emt 0:00:03]} Rf1+ {[%emt 0:00:41]} 57. Ke3 {[%emt 0:00:03]} Re1+ {[%emt 0:
00:02]} 58. Kf2 {[%emt 0:00:02]} Rd1 {[%emt 0:00:33]} 59. d6 {[%emt 0:00:11]}
h4 {[%emt 0:00:19]} 60. Rh8 {[%emt 0:00:17]} g5 {[%emt 0:00:44]} 61. Rh7 {
[%emt 0:00:17]} gxf4 {[%emt 0:00:16]} 62. Rxf7+ {[%emt 0:00:03]} Ke6 {[%emt 0:
00:00]} 63. Rxf4 {[%emt 0:01:46]} Kxe5 {[%emt 0:00:01]} 64. Rxh4 {[%emt 0:00:
01]} Rxd6 {[%emt 0:00:01]} 65. Rh3 {[%emt 0:00:01]} Rf6+ {[%emt 0:00:02]} 66.
Rf3 {[%emt 0:00:01]} Rxf3+ {[%emt 0:00:00]} 67. Kxf3 {[%emt 0:00:00]} 1/2-1/2

[Event "Airthings Masters MCCT Prel 2022"]
[Site "Online"]
[Date "2022.02.13"]
[Round "14.7"]
[White "Keymer, Vincent"]
[Black "Le, Quang Liem"]
[Result "0-1"]
[ECO "D77"]
[WhiteElo "2664"]
[BlackElo "2709"]
[Annotator "RC"]
[PlyCount "136"]
[EventDate "2022.02.18"]
[EventType "tourn"]
[EventCountry "NET"]
[SourceTitle "playchess.com"]
[Source "ChessBase"]
[SourceQuality "1"]
[TimeControl "900+10"]

1. c4 {[%emt 0:00:00]} Nf6 {[%emt 0:00:00]} 2. Nf3 {[%emt 0:00:05]} e6 {
[%emt 0:00:04]} 3. b3 {[%emt 0:00:06]} b6 {[%emt 0:00:16]} 4. g3 {[%emt 0:00:
22]} Bb7 {[%emt 0:00:08]} 5. Bg2 {[%emt 0:00:02]} g6 {[%emt 0:00:15]} 6. Bb2 {
[%emt 0:00:14]} Bg7 {[%emt 0:00:02]} 7. O-O {[%emt 0:00:02]} O-O {[%emt 0:00:
02]} 8. d4 {[%emt 0:01:27]} d5 {[%emt 0:00:09]} 9. cxd5 {[%emt 0:00:57]} exd5 {
[%emt 0:00:00]} 10. Nc3 {[%emt 0:00:35]} Re8 {[%emt 0:00:28]} 11. Rc1 {[%emt 0:
00:18]} a6 {[%emt 0:00:33]} 12. Ne5 {[%emt 0:01:01]} Nbd7 {[%emt 0:00:34]} 13.
Nd3 {[%emt 0:00:04]} Ne4 {[%emt 0:01:14]} 14. e3 {[%emt 0:00:55]} Ndf6 {
[%emt 0:01:43]} 15. Ne2 {[%emt 0:00:33]} a5 {[%emt 0:01:30]} 16. Re1 {[%emt 0:
01:19]} Ba6 {[%emt 0:00:56]} 17. Ne5 {[%emt 0:01:34]} c5 {[%emt 0:00:09]} 18.
f3 {[%emt 0:01:24]} Nd6 {[%emt 0:01:13]} 19. Nf4 {[%emt 0:01:12]} Rc8 {[%emt 0:
01:31]} 20. g4 {[%emt 0:01:12]} g5 {[%emt 0:00:45]} 21. Nh3 {[%emt 0:00:21]} h6
{[%emt 0:00:04]} 22. f4 {[%emt 0:00:19]} Nde4 {[%emt 0:00:03]} 23. Nf2 {
[%emt 0:00:26]} Nxf2 {[%emt 0:00:30]} 24. Kxf2 {[%emt 0:00:00]} c4 {[%emt 0:01:
15]} 25. a4 {[%emt 0:01:31]} cxb3 {[%emt 0:02:17]} 26. Qxb3 {[%emt 0:00:09]}
Rxc1 {[%emt 0:00:04]} 27. Bxc1 {[%emt 0:01:37]} gxf4 {[%emt 0:00:10]} 28. exf4
{[%emt 0:00:05]} Nxg4+ {[%emt 0:00:02]} 29. Kg1 {[%emt 0:00:21]} Qh4 {[%emt 0:
00:34]} 30. Qg3 {[%emt 0:00:13]} Qxg3 {[%emt 0:00:03]} 31. hxg3 {[%emt 0:00:00]
} Bc4 {[%emt 0:00:56]} 32. Bd2 {[%emt 0:00:48]} Nxe5 {[%emt 0:00:06]} 33. fxe5
{[%emt 0:00:18]} f6 {[%emt 0:00:29]} 34. Bf4 {[%emt 0:00:04]} fxe5 {[%emt 0:00:
12]} 35. dxe5 {[%emt 0:00:00]} Kf7 {[%emt 0:01:29]} 36. Bh3 {[%emt 0:00:41]}
Ke7 {[%emt 0:00:01]} 37. Rb1 {[%emt 0:00:16]} Kd8 {[%emt 0:00:23]} 38. Rxb6 {
[%emt 0:00:24]} Bxe5 {[%emt 0:00:03]} 39. Rxh6 {[%emt 0:00:09]} Bxf4 {[%emt 0:
00:37]} 40. gxf4 {[%emt 0:00:00]} Kc7 {[%emt 0:00:08]} 41. Be6 {[%emt 0:00:16]}
Rf8 {[%emt 0:00:18]} 42. f5 {[%emt 0:00:21]} Kd6 {[%emt 0:00:01]} 43. Kf2 {
[%emt 0:00:15]} Ke5 {[%emt 0:00:06]} 44. Rh1 {[%emt 0:00:07]} Bd3 {[%emt 0:00:
12]} 45. Re1+ {[%emt 0:00:20]} Kd6 {[%emt 0:00:12]} 46. Ke3 {[%emt 0:00:11]}
Bxf5 {[%emt 0:00:05]} 47. Bxf5 {[%emt 0:00:03]} Rxf5 {[%emt 0:00:00]} 48. Rb1 {
[%emt 0:00:05]} Re5+ {[%emt 0:00:01]} 49. Kd3 {[%emt 0:00:01]} Re4 {[%emt 0:00:
00]} 50. Ra1 {[%emt 0:00:17]} Kc5 {[%emt 0:00:02]} 51. Ra2 {[%emt 0:00:12]}
Rd4+ {[%emt 0:00:05]} 52. Kc3 {[%emt 0:00:08]} Rh4 {[%emt 0:00:02]} 53. Ra1 {
[%emt 0:00:15]} Rh3+ {[%emt 0:00:03]} 54. Kd2 {[%emt 0:00:02]} Kd4 {[%emt 0:00:
09]} 55. Ke2 {[%emt 0:00:22]} Rh2+ {[%emt 0:00:12]} 56. Kf3 {[%emt 0:00:01]}
Rd2 {[%emt 0:00:14]} 57. Rh1 {[%emt 0:00:24]} Ra2 {[%emt 0:00:09]} 58. Rh4+ {
[%emt 0:00:06]} Kd3 {[%emt 0:00:01]} 59. Rh5 {[%emt 0:00:07]} Kc4 {[%emt 0:00:
01]} 60. Rh4+ {[%emt 0:00:20]} d4 {[%emt 0:00:02]} 61. Ke4 {[%emt 0:00:03]}
Re2+ {[%emt 0:00:03]} 62. Kf3 {[%emt 0:00:00]} Re8 {[%emt 0:00:44]} 63. Rh5 {
[%emt 0:00:13]} d3 {[%emt 0:00:01]} 64. Rh7 {[%emt 0:00:13]} d2 {[%emt 0:00:14]
} 65. Rc7+ {[%emt 0:00:04]} Kb3 {[%emt 0:00:03]} 66. Rd7 {[%emt 0:00:03]} Kc2 {
[%emt 0:00:01]} 67. Rc7+ {[%emt 0:00:01]} Kd1 {[%emt 0:00:03]} 68. Rd7 {
[%emt 0:00:16]} Ke1 {[%emt 0:00:02]} 0-1

[Event "Airthings Masters MCCT Prel 2022"]
[Site "Online"]
[Date "2022.02.13"]
[Round "14.8"]
[White "Niemann, Hans Moke"]
[Black "Praggnanandhaa R"]
[Result "1-0"]
[ECO "A20"]
[WhiteElo "2642"]
[BlackElo "2612"]
[Annotator "ChessBase"]
[PlyCount "85"]
[EventDate "2022.02.18"]
[EventType "tourn"]
[EventCountry "NET"]
[SourceTitle "playchess.com"]
[Source "ChessBase"]
[SourceQuality "1"]
[TimeControl "900+10"]

1. c4 {[%emt 0:00:00]} e5 {[%emt 0:00:00]} 2. g3 {[%emt 0:00:04]} c6 {[%emt 0:
00:02]} 3. d4 {[%emt 0:00:03]} e4 {[%emt 0:00:02]} 4. a3 {[%emt 0:00:02]} d5 {
[%emt 0:00:04]} 5. Nc3 {[%emt 0:00:02]} Be7 {[%emt 0:00:06]} 6. Bg2 {[%emt 0:
00:05]} Nf6 {[%emt 0:00:02]} 7. f3 {[%emt 0:00:01]} exf3 {[%emt 0:00:03]} 8.
Nxf3 {[%emt 0:00:00]} O-O {[%emt 0:00:01]} 9. O-O {[%emt 0:00:02]} h6 {[%emt 0:
00:02]} 10. h3 {[%emt 0:00:26]} Be6 {[%emt 0:02:58]} 11. g4 {[%emt 0:00:04]}
Ne4 {[%emt 0:00:29]} 12. Qc2 {[%emt 0:01:13]} Nxc3 {[%emt 0:01:52]} 13. bxc3 {
[%emt 0:00:04]} Nd7 {[%emt 0:00:00]} 14. Rb1 {[%emt 0:00:01]} Qc7 {[%emt 0:00:
26]} 15. g5 {[%emt 0:00:28]} Qg3 {[%emt 0:02:20]} 16. gxh6 {[%emt 0:00:27]}
Bxh3 {[%emt 0:00:09]} 17. Rf2 {[%emt 0:00:02]} g6 {[%emt 0:01:20]} 18. Qd2 {
[%emt 0:00:45]} Bf5 {[%emt 0:01:15]} 19. Rxb7 {[%emt 0:01:14]} Rab8 {[%emt 0:
00:15]} 20. Rxb8 {[%emt 0:00:21]} Rxb8 {[%emt 0:00:03]} 21. Qf4 {[%emt 0:00:34]
} Bd6 {[%emt 0:00:40]} 22. Qxg3 {[%emt 0:00:17]} Bxg3 {[%emt 0:00:00]} 23. Rf1
{[%emt 0:00:01]} Re8 {[%emt 0:02:03]} 24. cxd5 {[%emt 0:01:09]} cxd5 {[%emt 0:
00:00]} 25. Ng5 {[%emt 0:00:16]} Nb6 {[%emt 0:00:39]} 26. Bh3 {[%emt 0:01:15]}
Bxh3 {[%emt 0:01:36]} 27. Rxf7 {[%emt 0:00:03]} Be6 {[%emt 0:00:01]} 28. Rg7+ {
[%emt 0:00:01]} Kh8 {[%emt 0:00:01]} 29. Rxg6 {[%emt 0:00:02]} Bg8 {[%emt 0:00:
12]} 30. h7 {[%emt 0:00:03]} Be1 {[%emt 0:00:02]} 31. Bf4 {[%emt 0:00:44]} Nc4
{[%emt 0:00:02]} 32. hxg8=R+ {[%emt 0:01:09]} Rxg8 {[%emt 0:00:03]} 33. Rh6+ {
[%emt 0:00:19]} Kg7 {[%emt 0:00:01]} 34. Ra6 {[%emt 0:00:11]} Bxc3 {[%emt 0:00:
07]} 35. e3 {[%emt 0:00:15]} Bd2 {[%emt 0:01:03]} 36. Kf2 {[%emt 0:00:18]} Re8
{[%emt 0:00:05]} 37. Rxa7+ {[%emt 0:01:33]} Kf6 {[%emt 0:00:23]} 38. Ra6+ {
[%emt 0:00:06]} Kf5 {[%emt 0:00:55]} 39. Nf7 {[%emt 0:00:04]} Ke4 {[%emt 0:01:
27]} 40. Ke2 {[%emt 0:00:14]} Bc1 {[%emt 0:00:17]} 41. Rf6 {[%emt 0:00:16]} Rg8
{[%emt 0:00:38]} 42. Ng5+ {[%emt 0:00:04]} Rxg5 {[%emt 0:00:10]} 43. Bxg5 {
[%emt 0:00:00]} 1-0